bitfinex/quotes_ETHUSD_20240828
["timestamp","ask_amount","ask_price","bid_price","bid_amount"]
[1724858692560,4.00801,2495.0,2494.8,2.4178]
[1724858692866,4.00801,2495.0,2494.4,4.00894]
[1724858692867,4.00866,2494.6,2494.4,2.3563]
[1724858693063,8.01762,2494.5,2494.4,2.3563]
[1724858693271,4.00916,2494.3,2494.1,19.56]
[1724858693422,4.00916,2494.3,2494.1,21.516]
[1724858693872,4.0093,2494.2,2494.1,19.56]
[1724858694073,4.00951,2494.1,2493.9,21.9163]
[1724858694233,4.00951,2494.1,2493.9,4.54793]
[1724858694432,4.00951,2494.1,2493.9,2.3563]
[1724858694649,4.00916,2494.3,2493.9,2.3563]
[1724858695153,4.00888,2494.5,2494.0,0.08018518]
[1724858695361,4.00856,2494.7,2494.1,4.00941]
[1724858695562,4.00856,2494.7,2494.2,20.04913021]
[1724858695726,4.00866,2494.6,2494.3,0.08017069]
[1724858695925,4.00866,2494.6,2494.2,19.96895952]
[1724858696125,4.0084,2494.8,2494.2,19.56]
[1724858696433,3.0,2495.0,2493.9,2.3563]
[1724858696434,4.00962,2494.0,2493.9,2.3563]
[1724858696746,0.55,2494.7,2493.9,2.3563]
[1724858696747,4.00941,2494.2,2493.9,2.3563]
[1724858697126,4.00947,2494.1,2493.9,2.3563]
[1724858697327,4.00941,2494.2,2493.9,2.3563]
[1724858697571,8.01882,2494.2,2493.9,2.3563]
[1724858697742,4.00899,2494.4,2493.9,2.3563]
[1724858698069,4.00962,2494.0,2493.9,2.3563]
[1724858698460,4.00989,2493.9,2493.7,19.56]
[1724858698777,3.55,2494.3,2493.0,7.3]
[1724858698778,4.01042,2493.5,2493.4,21.8472]
[1724858698979,8.02036,2493.7,2493.4,2.2872]
[1724858699299,4.00966,2494.0,2493.5,0.08020133]
[1724858699435,4.00979,2493.9,2493.6,19.56]
[1724858699631,8.01907,2494.1,2493.7,0.0801933]
[1724858699837,4.0095,2494.1,2493.7,2.03008534]
[1724858700262,4.00964,2494.0,2493.6,19.56]
[1724858700467,4.00979,2493.9,2493.6,19.56]
[1724858701394,4.0101,2493.7,2493.6,19.56]
[1724858702086,2.05202793,2494.8,2493.6,21.74472]
[1724858702299,4.00866,2494.6,2494.0,4.00952]
[1724858702510,2.05202793,2495.2,2494.1,4.08953553]
[1724858702511,4.00858,2494.7,2494.1,4.08953553]
[1724858702660,4.00858,2494.7,2494.2,19.56]
[1724858702860,4.008,2495.1,2494.4,6.45345]
[1724858703072,4.008,2495.1,2494.5,4.08897372]
[1724858703284,4.008,2495.1,2494.6,4.00863]
[1724858703495,4.00787,2495.1,2494.7,19.64015709]
[1724858703682,4.00801,2495.0,2494.7,19.60692948]
[1724858703868,4.00821,2494.9,2494.7,19.60692948]
[1724858704203,4.0076,2495.3,2494.7,19.60692948]
[1724858704515,4.00692,2495.7,2494.8,22.0262507]
[1724858704516,4.00697,2495.7,2494.8,22.0262507]
[1724858704674,4.00734,2495.5,2494.9,26.37237831]
[1724858704855,4.00734,2495.5,2495.0,0.08015061]
[1724858705285,4.00697,2495.7,2495.1,19.60662279]
[1724858705492,4.00697,2495.7,2495.2,2.04882148]
[1724858705959,4.00721,2495.5,2495.3,0.04644737]
[1724858706162,4.00721,2495.5,2495.3,19.56]
[1724858706163,4.00737,2495.4,2495.3,19.56]
[1724858706360,4.00737,2495.4,2495.3,19.60644737]
[1724858706965,4.00721,2495.5,2495.3,19.60644737]
[1724858707166,4.00692,2495.7,2495.3,19.60644737]
[1724858707368,4.00692,2495.7,2495.3,21.56709211]
[1724858707614,5.61429338,2496.0,2495.4,2.52414446]
[1724858707791,4.00655,2496.0,2495.4,2.52414446]
[1724858707960,4.00612,2496.2,2495.5,0.30335014]
[1724858708161,4.00612,2496.2,2495.6,0.08013022]
[1724858708596,4.00625,2496.1,2495.7,0.04613457]
[1724858708778,4.00673,2495.8,2495.4,2.444]
[1724858708963,4.00642,2496.0,2495.5,0.04629096]
[1724858709163,5.61368338,2496.3,2495.5,4.13361768]
[1724858709407,4.0061,2496.2,2495.5,4.13361768]
[1724858709574,4.00594,2496.3,2495.6,0.65776177]
[1724858709783,4.00623,2496.2,2495.6,0.73788477]
[1724858709981,3.0,2496.2,2495.7,0.04613457]
[1724858710228,4.00655,2496.0,2495.7,0.04613457]
[1724858710410,8.01346,2495.8,2495.7,0.04613457]
[1724858710731,4.00717,2495.6,2495.4,2.444]
[1724858710989,3.0,2495.8,2495.0,2.2909]
[1724858711147,4.00816,2495.0,2494.5,2.2909]
[1724858711354,8.01585,2495.1,2494.5,6.29971]
[1724858711510,8.01585,2495.1,2494.5,6.29964]
[1724858711511,4.00787,2495.1,2494.5,6.29964]
[1724858711721,4.00769,2495.2,2494.6,0.7101247]
[1724858712096,4.00769,2495.2,2494.6,4.7187747]
[1724858712445,3.0,2495.5,2494.9,4.00817]
[1724858712738,3.0,2495.5,2494.7,1.10184147]
[1724858712946,4.00832,2494.9,2494.5,2.2909]
[1724858713128,4.0079,2495.1,2494.5,2.2909]
[1724858713466,4.00785,2495.1,2494.6,0.30925172]
[1724858713652,5.05715608,2495.6,2494.6,0.30925172]
[1724858713812,4.00743,2495.4,2494.6,8.32635758]
[1724858714012,4.00712,2495.6,2494.9,2.3287]
[1724858714241,4.00675,2495.8,2495.1,4.00774]
[1724858714460,4.00649,2496.0,2495.3,2.3334]
[1724858714620,4.00649,2496.0,2495.4,0.08012822]
[1724858714940,4.00659,2495.9,2495.3,2.3334]
[1724858715111,6.06281608,2496.5,2495.4,0.634101]
[1724858715112,4.00581,2496.4,2495.4,0.634101]
[1724858715316,4.00644,2496.0,2495.3,2.41354466]
[1724858715547,4.00644,2496.0,2495.5,0.08014466]
[1724858715858,4.00708,2495.6,2495.3,2.3334]
[1724858716000,4.00721,2495.5,2495.3,2.3334]
[1724858716313,4.0068,2495.8,2495.3,2.56674]
[1724858716511,4.00642,2496.0,2495.3,6.65426589]
[1724858716696,4.00642,2496.0,2495.4,5.07343159]
[1724858716896,4.00642,2496.0,2495.5,4.08732824]
[1724858717358,4.00618,2496.2,2495.5,4.08732824]
[1724858717571,4.00653,2496.0,2495.6,19.56]
[1724858717770,4.00657,2495.9,2495.6,19.56]
[1724858718269,4.00653,2496.0,2495.7,0.04503989]
[1724858718445,8.01306,2496.0,2495.7,0.04503989]
[1724858718770,4.00541,2496.7,2496.0,4.0064]
[1724858719080,4.00503,2496.9,2496.4,4.00575]
[1724858719235,4.00473,2497.1,2496.5,4.08558678]
[1724858719437,4.00473,2497.1,2496.6,2.30721117]
[1724858719653,2.47078419,2496.7,2496.6,2.30721117]
[1724858720174,10.48134419,2496.7,2496.6,0.04431117]
[1724858720385,17.48662419,2496.7,2496.6,0.04431117]
[1724858720674,17.48662419,2496.7,2496.0,2.3564]
[1724858720675,5.47078419,2496.7,2496.0,2.3564]
[1724858720842,4.00588,2496.4,2496.0,2.3564]
[1724858721052,4.00588,2496.4,2496.1,0.0447019]
[1724858722070,8.01216,2496.2,2496.1,0.0447019]
[1724858722290,4.00578,2496.4,2496.1,0.0447019]
[1724858722466,4.00608,2496.2,2496.1,0.0447019]
[1724858723142,4.00552,2496.6,2496.1,0.0447019]
[1724858723334,2.47078419,2496.7,2496.1,0.36492566]
[1724858723643,2.47078419,2496.7,2496.6,2.4054]
[1724858723837,2.47078419,2496.7,2496.6,6.69569117]
[1724858724051,2.47078419,2496.7,2496.6,2.69025117]
[1724858724256,2.47078419,2496.7,2496.6,2.44971117]
[1724858724577,4.00524,2496.8,2496.6,2.44971117]
[1724858724781,8.01048,2496.8,2496.6,2.44971117]
[1724858724988,4.00524,2496.8,2496.6,2.44971117]
[1724858725342,2.05642461,2497.6,2496.7,0.08010272]
[1724858725343,4.00473,2497.1,2496.7,0.08010272]
[1724858725578,2.05642461,2497.6,2496.6,2.69468229]
[1724858725579,4.00493,2497.0,2496.6,2.44971117]
[1724858725758,4.00496,2496.9,2496.8,0.04415493]
[1724858726079,4.00498,2496.9,2496.8,0.04415493]
[1724858726388,4.00498,2496.9,2495.3,0.4033]
[1724858726389,4.00614,2496.2,2495.5,6.31623]
[1724858726554,4.00619,2496.2,2495.6,4.00704]
[1724858726759,4.00619,2496.2,2495.5,7.34853]
[1724858727072,4.00652,2496.0,2495.5,2.3091]
[1724858727239,4.00705,2495.6,2495.5,2.3091]
[1724858727682,8.0141,2495.6,2494.8,0.82407657]
[1724858727891,4.00747,2495.4,2495.1,2.4981]
[1724858728083,4.00811,2495.0,2494.8,0.82407657]
[1724858728492,4.00771,2495.2,2494.8,0.82407657]
[1724858728659,4.00786,2495.1,2494.8,0.82407657]
[1724858729244,4.00771,2495.2,2494.8,0.82407657]
[1724858729645,4.00771,2495.2,2494.7,2.3339]
[1724858729876,4.00742,2495.4,2494.8,0.32156682]
[1724858730058,4.00723,2495.5,2494.8,4.32984682]
[1724858730273,4.00749,2495.4,2494.9,0.66637468]
[1724858730556,4.00706,2495.6,2495.0,0.08014684]
[1724858730759,4.00706,2495.6,2495.1,2.2704]
[1724858731007,4.00706,2495.6,2495.2,0.08014574]
[1724858731288,4.40334218,2496.4,2495.2,0.08014574]
[1724858731289,4.00643,2496.0,2495.4,4.00735]
[1724858731496,4.00613,2496.2,2495.5,4.08729806]
[1724858731644,4.00583,2496.4,2495.6,2.2704]
[1724858731845,4.00583,2496.4,2495.7,4.08700215]
[1724858732088,4.00604,2496.3,2495.8,0.63574022]
[1724858732334,4.00583,2496.4,2495.9,0.08012196]
[1724858732335,4.00609,2496.2,2495.9,0.08012196]
[1724858732500,4.00583,2496.4,2495.9,0.08012196]
[1724858732794,4.0055,2496.6,2495.9,0.08012196]
[1724858733197,4.00518,2496.8,2496.2,4.00601]
[1724858733350,4.00518,2496.8,2496.0,2.4379]
[1724858733351,4.00459,2497.2,2496.5,4.00559]
[1724858733689,4.00459,2497.2,2496.6,4.12898482]
[1724858733889,4.00358,2497.8,2497.1,4.00458]
[1724858734110,4.00369,2497.7,2497.3,2.4382]
[1724858734268,4.00358,2497.8,2497.3,2.4382]
[1724858734455,4.00358,2497.8,2497.4,0.04250391]
[1724858734798,4.00308,2498.1,2497.4,0.04250391]
[1724858734944,4.00381,2497.7,2497.4,0.04250391]
[1724858735597,4.004,2497.5,2497.4,0.04250391]
[1724858736203,4.00278,2498.3,2497.2,19.56]
[1724858736204,4.0042,2497.4,2497.2,19.56]
[1724858736896,4.00432,2497.3,2497.2,19.56]
[1724858737114,4.00432,2497.3,2497.0,21.9917]
[1724858737317,4.00483,2497.0,2496.7,21.9961]
[1724858737627,4.00496,2496.9,2496.8,19.56]
[1724858737837,8.00992,2496.9,2496.8,19.56]
[1724858738184,8.00992,2496.9,2495.9,2.4733]
[1724858738185,4.00595,2496.3,2495.9,2.4733]
[1724858738383,7.00448,2497.2,2495.9,2.4733]
[1724858738384,4.0055,2496.6,2495.9,2.4733]
[1724858738743,4.00424,2497.4,2496.8,2.4733]
[1724858739023,4.00424,2497.4,2496.9,0.08008678]
[1724858739187,4.00373,2497.7,2496.8,2.4733]
[1724858739388,4.00449,2497.2,2496.8,2.4733]
[1724858739581,4.00482,2497.0,2496.8,2.4733]
[1724858740016,4.00457,2497.2,2496.8,2.4733]
[1724858740197,8.00848,2497.4,2496.9,0.08009539]
[1724858740396,3.0,2497.7,2496.8,6.47827]
[1724858740686,4.00426,2497.4,2496.8,6.47827]
[1724858741399,4.00426,2497.4,2496.9,0.647827]
[1724858741602,4.00426,2497.4,2496.8,2.4733]
[1724858741603,4.00483,2497.0,2496.8,2.4733]
[1724858742187,4.00496,2496.9,2496.8,2.4733]
[1724858742446,4.00496,2496.9,2496.3,2.3954]
[1724858742626,4.00472,2497.1,2496.3,2.795996]
[1724858742826,4.00494,2497.0,2496.3,2.795996]
[1724858743136,4.00405,2497.5,2496.3,2.795996]
[1724858743137,4.00574,2496.5,2496.3,2.3954]
[1724858743440,4.00574,2496.5,2496.0,19.56]
[1724858743441,4.00633,2496.1,2495.7,2.3954]
[1724858743692,8.01173,2496.4,2495.7,6.40216]
[1724858743816,4.00554,2496.6,2496.0,4.0063]
[1724858744149,8.01111,2496.6,2495.9,4.00646]
[1724858744445,4.00638,2496.1,2495.7,2.3954]
[1724858744812,4.00498,2496.9,2495.7,2.3954]
[1724858745015,4.00498,2496.9,2496.2,2.3954]
[1724858745211,4.00527,2496.8,2496.3,0.08010177]
[1724858746030,4.00498,2496.9,2496.3,4.08593177]
[1724858746197,7.00441,2497.3,2496.5,4.00559]
[1724858746198,4.0049,2497.0,2496.5,4.00559]
[1724858746401,4.0049,2497.0,2496.6,0.08009597]
[1724858746730,4.0049,2497.0,2496.6,2.50947789]
[1724858746898,4.00514,2496.8,2496.4,20.20813318]
[1724858747101,4.00437,2497.3,2496.4,20.20813318]
[1724858747102,4.00493,2497.0,2496.4,20.20813318]
[1724858747346,4.00493,2497.0,2496.5,2.24175812]
[1724858747556,4.00437,2497.3,2496.5,2.24175812]
[1724858747838,8.00982,2497.0,2496.4,20.20813318]
[1724858748000,8.00983,2497.0,2496.5,0.08009978]
[1724858748203,4.00488,2497.0,2496.5,0.08009978]
[1724858748539,4.00508,2496.9,2496.6,0.04257266]
[1724858748747,4.00488,2497.0,2496.6,0.04257266]
[1724858749049,4.00414,2497.5,2496.7,21.8103]
[1724858749203,4.00414,2497.5,2496.8,25.75030727]
[1724858749549,4.00322,2498.0,2497.3,4.00417]
[1724858749856,4.00322,2498.0,2496.9,19.640079]
[1724858749857,4.00297,2498.2,2497.5,2.2503]
[1724858749995,4.00297,2498.2,2497.6,0.080063]
[1724858750200,4.00297,2498.2,2497.6,19.6817978]
[1724858750405,4.00211,2498.7,2497.6,22.27539458]
[1724858750406,4.00329,2498.0,2497.6,22.27539458]
[1724858750615,4.00356,2497.8,2497.6,19.6017348]
[1724858750851,4.00329,2498.0,2497.6,19.6017348]
[1724858751053,4.00308,2498.1,2497.7,0.0800681]
[1724858751278,4.00291,2498.2,2497.6,21.10093234]
[1724858751279,2.0529301,2499.0,2497.8,0.04113017]
[1724858751587,8.00672,2497.9,2497.8,0.04113017]
[1724858752073,4.00395,2497.6,2497.1,19.56]
[1724858752476,3.0,2497.9,2497.1,19.56]
[1724858752679,4.00464,2497.1,2497.0,21.9597]
[1724858752981,4.0037,2497.7,2497.0,6.4044]
[1724858753199,4.0042,2497.4,2497.1,19.56]
[1724858753335,4.00437,2497.3,2497.1,19.56]
[1724858753537,4.00436,2497.3,2497.1,19.56]
[1724858753738,4.00448,2497.2,2497.1,19.56]
[1724858753932,4.00436,2497.3,2496.8,4.0051]
[1724858754262,4.00436,2497.3,2496.7,19.56]
[1724858754470,2.05280001,2498.4,2497.3,2.4165]
[1724858754669,2.4893,2498.6,2497.5,4.00395]
[1724858754670,4.00293,2498.2,2497.5,4.00395]
[1724858754863,4.00219,2498.7,2498.0,4.0031]
[1724858755071,4.00169,2499.0,2498.4,4.00253]
[1724858755280,4.00087,2499.5,2498.3,0.08003547]
[1724858755580,4.00272,2498.3,2498.2,2.4173]
[1724858755880,4.00272,2498.3,2497.7,0.6820855]
[1724858755881,4.00289,2498.2,2497.7,2.426]
[1724858756036,4.00272,2498.3,2497.7,2.426]
[1724858756738,4.00237,2498.6,2497.7,2.426]
[1724858756943,4.00243,2498.5,2497.8,4.0834838]
[1724858757169,4.00243,2498.5,2497.8,8.0868838]
[1724858757170,8.00495,2498.5,2497.8,8.0868838]
[1724858757353,4.00257,2498.4,2497.8,4.0834638]
[1724858757553,4.00282,2498.3,2497.8,0.0800638]
[1724858758087,4.00281,2498.3,2497.8,0.0800638]
[1724858758249,8.00565,2498.3,2497.8,0.0800638]
[1724858758453,4.00281,2498.3,2497.8,0.0800638]
[1724858758814,4.00281,2498.3,2497.7,2.426]
[1724858759105,4.00281,2498.3,2497.8,4.08357838]
[1724858759266,4.00302,2498.2,2497.7,2.426]
[1724858759467,4.00308,2498.1,2497.7,2.426]
[1724858760012,3.0,2498.8,2497.7,2.426]
[1724858760013,8.00655,2498.0,2497.7,2.426]
[1724858760231,4.00256,2498.4,2497.3,2.3557]
[1724858760506,4.00411,2497.5,2497.3,2.3557]
[1724858760663,4.00411,2497.5,2496.9,2.265]
[1724858760866,3.0,2498.0,2497.3,4.00419]
[1724858761178,3.0,2498.3,2497.5,6.26898]
[1724858761179,4.00288,2498.2,2497.5,6.26898]
[1724858761384,4.00293,2498.2,2497.6,4.08381623]
[1724858761708,2.05168946,2499.2,2497.6,0.71494785]
[1724858761709,4.00217,2498.7,2497.6,0.71494785]
[1724858761912,4.00217,2498.7,2498.0,4.00304]
[1724858762116,4.0027,2498.4,2497.8,8.00683]
[1724858762264,4.00251,2498.5,2498.0,4.00317]
[1724858762462,8.00437,2498.7,2498.1,0.08005243]
[1724858762765,4.00164,2499.0,2498.2,4.00279]
[1724858762766,4.00192,2498.8,2498.2,4.00279]
[1724858762984,8.00395,2498.8,2498.3,0.08004538]
[1724858763200,4.00192,2498.8,2498.3,0.08004538]
[1724858763508,4.00074,2499.6,2498.8,4.00187]
[1724858763509,4.00102,2499.4,2498.8,4.00187]
[1724858763693,8.00145,2499.6,2499.0,4.00149]
[1724858763895,8.00145,2499.6,2499.1,0.08002071]
[1724858763896,4.00083,2499.5,2499.1,0.08002071]
[1724858764098,4.00128,2499.2,2499.1,0.04250097]
[1724858764328,4.00117,2499.3,2499.1,0.04250097]
[1724858764526,4.00086,2499.5,2498.9,2.4815]
[1724858764723,4.00086,2499.5,2499.2,0.04241743]
[1724858765007,4.00053,2499.7,2499.0,4.08159647]
[1724858765214,4.00042,2499.8,2499.3,0.0423339]
[1724858765399,3.99965,2500.3,2499.5,4.00079]
[1724858765606,3.9997,2500.2,2499.6,0.07999964]
[1724858765783,3.99986,2500.1,2499.6,0.12208298]
[1724858765970,3.99889,2500.7,2499.9,4.00003]
[1724858766356,2.05100949,2501.5,2499.7,2.4505]
[1724858766357,4.1209129,2501.1,2500.1,6.45031]
[1724858766481,3.99859,2500.9,2500.2,4.07962747]
[1724858766687,3.99859,2500.9,2500.3,0.07997747]
[1724858767013,3.99859,2500.9,2500.2,1.10568148]
[1724858767014,3.99952,2500.3,2500.2,0.0485128]
[1724858767213,3.99962,2500.3,2499.7,2.3794]
[1724858767369,3.99969,2500.2,2499.7,2.3794]
[1724858767580,4.00001,2500.0,2499.7,2.3794]
[1724858767817,3.99971,2500.2,2499.7,2.3794]
[1724858768120,3.99954,2500.3,2499.7,2.3794]
[1724858768267,4.0,2500.0,2499.3,2.3794]
[1724858768473,3.99915,2500.6,2499.3,2.3794]
[1724858768474,3.99985,2500.1,2499.3,2.3794]
[1724858768781,4.00035,2499.8,2499.3,2.3794]
[1724858769106,3.0,2500.7,2499.5,2.3794]
[1724858769315,3.99899,2500.7,2500.0,3.99989]
[1724858769469,3.9984,2501.0,2500.2,3.99966]
[1724858769665,3.99858,2500.9,2500.3,0.07997598]
[1724858769871,3.99867,2500.9,2500.3,0.07997966]
[1724858770112,3.99841,2501.0,2500.3,4.72528263]
[1724858770314,3.99858,2500.9,2500.3,4.07937966]
[1724858770521,3.99858,2500.9,2500.3,0.07997966]
[1724858770732,3.99858,2500.9,2500.3,1.12586263]
[1724858770868,3.99901,2500.7,2500.1,2.3794]
[1724858771194,3.99901,2500.7,2500.2,0.07998214]
[1724858771379,7.99804,2500.7,2500.2,0.07998214]
[1724858771591,3.99934,2500.5,2500.1,2.3794]
[1724858772273,3.99894,2500.7,2500.1,2.3794]
[1724858772477,0.1226329,2501.1,2499.7,2.4753]
[1724858772478,4.00016,2499.9,2499.7,2.4753]
[1724858772673,3.99947,2500.4,2499.7,2.4753]
[1724858772674,4.00032,2499.8,2499.7,2.4753]
[1724858773172,4.0,2500.0,2499.7,2.4753]
[1724858773519,3.99976,2500.2,2499.7,2.4753]
[1724858773737,3.0,2500.4,2499.2,2.2777]
[1724858773995,3.99929,2500.5,2499.2,2.2777]
[1724858773996,3.99982,2500.2,2499.2,2.2777]
[1724858774139,4.00071,2499.6,2499.2,2.2777]
[1724858774339,4.00035,2499.8,2499.3,0.08001694]
[1724858774649,4.00004,2500.0,2499.3,4.08109694]
[1724858774848,4.00029,2499.9,2499.3,4.08109694]
[1724858775064,4.00004,2500.0,2499.3,5.13981963]
[1724858775382,3.99974,2500.2,2499.3,9.14090963]
[1724858775680,3.99981,2500.2,2499.5,6.41946]
[1724858775888,3.99877,2500.8,2499.5,2.4188]
[1724858775889,4.00029,2499.9,2499.5,2.4188]
[1724858776188,4.00064,2499.6,2499.5,2.4188]
[1724858776352,4.00051,2499.7,2499.5,2.4188]
[1724858776681,0.55,2500.7,2500.1,3.99973]
[1724858776682,3.99898,2500.7,2500.1,3.99973]
[1724858776886,3.99916,2500.6,2499.9,2.2899]
[1724858777052,3.99922,2500.5,2500.0,0.22899]
[1724858777238,3.99922,2500.5,2499.9,2.2899]
[1724858777239,3.99961,2500.3,2499.9,2.2899]
[1724858777792,3.99926,2500.5,2499.9,2.2899]
[1724858778090,3.99906,2500.6,2500.0,4.07996303]
[1724858778242,3.99896,2500.7,2500.1,0.70366858]
[1724858778643,3.99896,2500.7,2500.1,4.70348858]
[1724858778644,7.99798,2500.7,2500.1,4.70348858]
[1724858778948,3.99896,2500.7,2500.1,4.70348858]
[1724858779148,3.99896,2500.7,2500.2,0.47034886]
[1724858779352,7.99794,2500.7,2500.2,0.47034886]
[1724858779548,3.99896,2500.7,2500.3,0.07538402]
[1724858779754,3.99905,2500.6,2500.3,0.07538402]
[1724858780071,3.99905,2500.6,2500.1,4.6367163]
[1724858780072,3.99905,2500.6,2500.4,0.0752171]
[1724858780284,7.1209129,2501.1,2499.9,6.28997]
[1724858780285,3.9992,2500.5,2499.9,2.2899]
[1724858780476,7.99919,2500.3,2500.0,0.07588486]
[1724858780794,3.99952,2500.3,2500.0,0.07588486]
[1724858780983,3.99929,2500.5,2500.0,0.07588486]
[1724858781171,7.54844,2501.0,2500.0,0.07588486]
[1724858781478,3.99951,2500.4,2500.0,0.07588486]
[1724858782053,3.99984,2500.1,2500.0,0.07588486]
[1724858782437,7.99968,2500.1,2500.0,0.07588486]
[1724858782691,4.00041,2499.8,2499.5,2.3714]
[1724858782982,4.00049,2499.7,2499.6,0.06698373]
[1724858783188,4.00041,2499.8,2499.6,0.08885477]
[1724858783396,3.0,2500.1,2499.6,0.08885477]
[1724858783397,8.00096,2499.7,2499.6,0.08885477]
[1724858783746,4.00114,2499.3,2499.1,2.3315]
[1724858783984,4.00114,2499.3,2498.7,2.3315]
[1724858784187,4.00177,2498.9,2498.7,2.3315]
[1724858784357,4.00192,2498.8,2498.7,2.3315]
[1724858784564,4.00177,2498.9,2498.7,2.3315]
[1724858785170,8.00307,2499.1,2498.7,2.3315]
[1724858785342,3.0,2499.6,2498.8,4.00182]
[1724858785343,4.00113,2499.3,2498.8,4.00182]
[1724858785574,4.00085,2499.5,2498.8,4.00182]
[1724858785575,4.00081,2499.5,2498.8,4.08184809]
[1724858785746,4.00081,2499.5,2498.7,2.56465]
[1724858785747,4.00152,2499.1,2498.7,2.3315]
[1724858785942,4.00152,2499.1,2497.3,9.7650819]
[1724858785943,4.00192,2498.8,2498.3,2.4481]
[1724858786193,4.00224,2498.6,2498.3,2.4481]
[1724858787374,4.00166,2499.0,2498.3,2.4481]
[1724858787556,4.00193,2498.8,2498.3,2.52814564]
[1724858787768,4.00193,2498.8,2498.3,3.1812402]
[1724858787958,3.0,2498.9,2498.3,3.1812402]
[1724858788160,4.00136,2499.2,2498.4,4.00245]
[1724858788358,4.00136,2499.2,2498.5,0.08003759]
[1724858788695,4.00104,2499.4,2498.7,6.40045]
[1724858788989,4.00104,2499.4,2498.7,2.47853296]
[1724858789188,4.00139,2499.2,2498.7,2.3985]
[1724858789374,8.00279,2499.2,2498.7,2.3985]
[1724858789584,4.00162,2499.0,2498.7,2.3985]
[1724858789796,8.00334,2499.0,2498.7,2.3985]
[1724858789953,4.00178,2498.9,2498.7,2.3985]
[1724858790458,4.00178,2498.9,2498.3,2.3314]
[1724858790459,4.00208,2498.7,2498.3,2.3314]
[1724858790947,3.0,2499.3,2498.4,2.3314]
[1724858791149,4.0024,2498.5,2498.4,2.3314]
[1724858791378,8.0043,2498.7,2498.4,2.3314]
[1724858791562,4.00209,2498.7,2498.4,2.3314]
[1724858791765,3.0,2499.2,2497.4,1.70650819]
[1724858791766,4.00243,2498.5,2498.0,2.3159]
[1724858791953,8.0044,2498.7,2498.1,4.00298]
[1724858792176,4.00227,2498.6,2498.1,4.00298]
[1724858792382,4.00227,2498.6,2498.0,2.3159]
[1724858792383,4.00225,2498.6,2498.0,2.3159]
[1724858792603,4.00219,2498.7,2498.1,5.11529084]
[1724858792814,4.00219,2498.7,2498.1,5.035243]
[1724858792991,4.0015,2499.1,2498.0,2.3159]
[1724858793170,4.00253,2498.5,2498.0,2.3159]
[1724858793513,4.00208,2498.7,2498.1,0.04828553]
[1724858793672,4.00208,2498.7,2498.1,4.05132553]
[1724858793868,4.00208,2498.7,2498.1,0.04828553]
[1724858794073,4.00235,2498.6,2498.1,0.04828553]
[1724858794517,4.00208,2498.7,2498.1,0.75622518]
[1724858794699,4.00148,2499.1,2498.4,2.281]
[1724858794700,4.00149,2499.1,2498.4,2.281]
[1724858795020,4.00087,2499.5,2498.5,0.70839628]
[1724858795217,4.40308,2500.2,2498.5,0.70839628]
[1724858795218,4.0007,2499.6,2499.0,4.0015]
[1724858795518,4.00091,2499.5,2499.1,0.40015]
[1724858795701,4.00091,2499.5,2499.1,0.05166304]
[1724858795900,4.00005,2500.0,2499.1,0.05166304]
[1724858795901,4.00128,2499.2,2499.1,0.05166304]
[1724858796101,4.00128,2499.2,2498.8,2.281]
[1724858796102,4.00175,2499.0,2498.8,2.281]
[1724858796308,4.00005,2500.0,2499.1,0.05166304]
[1724858796309,8.00256,2499.2,2499.1,0.05166304]
[1724858796545,4.00104,2499.4,2498.4,2.4957]
[1724858796546,4.00193,2498.8,2498.4,2.4957]
[1724858796915,4.00193,2498.8,2498.5,0.06825564]
[1724858798044,4.00208,2498.7,2498.5,0.06825564]
[1724858798267,4.00224,2498.6,2498.5,0.06825564]
[1724858798420,8.00448,2498.6,2498.5,0.06825564]
[1724858798857,4.00286,2498.3,2498.0,2.46]
[1724858799229,8.00499,2498.5,2498.1,0.246]
[1724858799428,8.00499,2498.5,2498.1,0.30719184]
[1724858799660,4.00216,2498.7,2498.1,0.30719184]
[1724858799963,4.00101,2499.4,2498.1,4.39018327]
[1724858800123,4.00218,2498.7,2498.2,0.68501833]
[1724858800459,4.00218,2498.7,2498.2,0.74608011]
[1724858800765,8.00435,2498.7,2498.2,0.74608011]
[1724858800982,8.00436,2498.7,2498.3,0.50750589]
[1724858801267,4.00217,2498.7,2498.3,0.50750589]
[1724858801422,4.00217,2498.7,2498.4,0.06073861]
[1724858801615,8.00434,2498.7,2498.4,0.06073861]
[1724858801819,3.0,2499.3,2498.4,0.06073861]
[1724858801820,4.0024,2498.5,2498.4,0.06073861]
[1724858802039,8.0048,2498.5,2498.4,0.06073861]
[1724858802240,4.0024,2498.5,2498.0,2.46]
[1724858802453,4.00218,2498.7,2498.4,0.06067553]
[1724858802658,4.00205,2498.8,2498.3,4.00261]
[1724858802845,4.00205,2498.8,2498.5,0.06059808]
[1724858803042,7.00115,2499.3,2498.4,0.40826521]
[1724858803043,3.0,2499.3,2498.4,0.0607281]
[1724858803235,4.00229,2498.6,2498.0,2.46]
[1724858803433,4.00265,2498.4,2498.0,3.106332]
[1724858803717,4.00285,2498.3,2498.0,3.106332]
[1724858803957,4.00265,2498.4,2498.0,2.46]
[1724858804147,4.00234,2498.6,2498.0,6.46318]
[1724858804372,4.00182,2498.9,2498.0,6.46318]
[1724858804373,4.00209,2498.7,2498.2,4.0028]
[1724858804585,4.00209,2498.7,2498.1,1.046643]
[1724858804586,4.00225,2498.6,2498.1,5.049553]
[1724858804789,4.00225,2498.6,2498.1,4.00291]
[1724858804954,4.0024,2498.5,2498.0,2.46]
[1724858805156,4.0024,2498.5,2498.0,3.106324]
[1724858805396,4.00261,2498.4,2498.0,2.46]
[1724858805551,4.0025,2498.5,2498.0,2.46]
[1724858805889,4.00281,2498.3,2498.0,2.46]